bitfinex/quotes_SOLUSD_20241121
["timestamp","ask_amount","ask_price","bid_price","bid_amount"]
[1732177763383,0.26774238,241.41,241.35,23.776884]
[1732177763583,0.26774238,241.41,241.37,23.776884]
[1732177763779,0.76774238,241.41,241.36,20.0]
[1732177764009,0.26774238,241.38,241.36,20.0]
[1732177764178,0.26774238,241.4,241.36,20.0]
[1732177764498,0.26774238,241.38,241.36,20.0]
[1732177764698,0.76774238,241.4,241.32,23.776884]
[1732177764883,0.26774238,241.4,241.35,20.0]
[1732177765083,0.26774238,241.4,241.37,20.0]
[1732177765286,0.76774238,241.42,241.37,20.0]
[1732177765490,0.26774238,241.4,241.37,20.0]
[1732177765686,0.26774238,241.4,241.36,23.776884]
[1732177765990,0.26774238,241.4,241.37,20.0]
[1732177768784,0.26774238,241.39,241.37,20.0]
[1732177769085,0.26774238,241.41,241.37,20.0]
[1732177771206,0.26774238,241.43,241.4,23.776884]
[1732177771715,0.26774238,241.43,241.41,20.0]
[1732177772600,0.5,241.42,241.35,20.0]
[1732177772791,0.26774238,241.39,241.36,23.776884]
[1732177772991,0.26774238,241.39,241.37,20.0]
[1732177775305,0.26774238,241.34,241.26,3.91733252]
[1732177775602,0.26774238,241.38,241.26,3.63579825]
[1732177775802,0.26774238,241.4,241.27,4.02842305]
[1732177776104,0.5,241.43,241.27,4.02842305]
[1732177776105,0.26774238,241.43,241.28,0.62125695]
[1732177776300,0.26774238,241.43,241.29,7.94575557]
[1732177776607,0.26774238,241.43,241.33,23.776884]
[1732177776785,0.26774238,241.43,241.36,20.0]
[1732177776986,0.26774238,241.43,241.38,20.0]
[1732177777604,0.26774238,241.43,241.4,20.0]
[1732177778109,0.26774238,241.43,241.38,20.0]
[1732177778612,0.26774238,241.43,241.39,23.776884]
[1732177778907,0.26774238,241.43,241.4,20.0]
[1732177779811,0.26774238,241.43,241.29,24.02842305]
[1732177779812,0.5,241.42,241.29,24.02842305]
[1732177780422,0.26774238,241.43,241.29,27.94575557]
[1732177780600,0.26774238,241.43,241.3,3.91733252]
[1732177780993,0.26774238,241.43,241.32,20.0]
[1732177781212,0.26774238,241.43,241.33,23.776884]
[1732177781398,0.5,241.42,241.34,20.0]
[1732177781592,0.26774238,241.43,241.36,20.0]
[1732177782105,0.26774238,241.43,241.38,20.0]
[1732177782410,0.26774238,241.43,241.34,20.0]
[1732177782411,0.5,241.42,241.34,20.0]
[1732177782618,0.5,241.42,241.36,20.0]
[1732177783112,0.5,241.42,241.38,20.0]
[1732177783708,0.26774238,241.4,241.36,20.0]
[1732177784210,0.26774238,241.4,241.38,20.0]
[1732177784415,0.26774238,241.4,241.39,43.776884]
[1732177784600,0.26774238,241.41,241.4,20.0]
[1732177787996,0.26774238,241.43,241.4,20.0]
[1732177788308,0.26774238,241.41,241.4,20.0]
[1732177789011,0.26774238,241.41,241.33,3.54025603]
[1732177789195,0.26774238,241.38,241.35,20.0]
[1732177789397,0.26774238,241.38,241.36,23.776884]
[1732177789600,0.26774238,241.38,241.37,43.776884]
[1732177790018,0.26774238,241.38,241.37,23.776884]
[1732177790219,0.26774238,241.4,241.37,43.776884]
[1732177790420,0.26774238,241.38,241.37,43.776884]
[1732177790719,0.26774238,241.4,241.38,20.0]
[1732177798328,0.26774238,241.38,241.3,7.50735939]
[1732177798512,0.26774238,241.38,241.31,43.776884]
[1732177799720,0.26774238,241.38,241.3,3.91733252]
[1732177799721,0.5,241.36,241.3,3.91733252]
[1732177799925,0.26774238,241.34,241.29,4.02842305]
[1732177800117,0.26774238,241.36,241.29,3.91733252]
[1732177800323,0.5,241.4,241.3,7.94575557]
[1732177800506,0.26774238,241.41,241.31,0.62132734]
[1732177800704,0.26774238,241.41,241.32,7.94575557]
[1732177800906,44.2127,241.46,241.32,7.94575557]
[1732177801105,0.26774238,241.49,241.35,43.776884]
[1732177801313,0.26774238,241.49,241.37,43.776884]
[1732177801526,0.26774238,241.49,241.39,23.776884]
[1732177801727,0.26774238,241.49,241.42,20.0]
[1732177802027,0.26774238,241.49,241.44,20.0]
[1732177802212,0.26774238,241.49,241.45,23.776884]
[1732177802420,0.26774238,241.49,241.47,23.776884]
[1732177802622,0.26774238,241.49,241.48,20.0]
[1732177803934,0.26774238,241.49,241.39,24.02842305]
[1732177804113,0.26774238,241.47,241.43,20.0]
[1732177804330,0.26774238,241.47,241.44,23.776884]
[1732177804528,0.26774238,241.47,241.45,20.0]
[1732177805236,0.26774238,241.45,241.35,20.0]
[1732177805530,0.26774238,241.45,241.35,23.91733252]
[1732177806233,0.26774238,241.45,241.38,23.776884]
[1732177806445,0.26774238,241.45,241.4,23.776884]
[1732177806624,0.26774238,241.45,241.42,23.776884]
[1732177807020,0.26774238,241.45,241.43,20.0]
[1732177808644,30.0498,241.52,241.47,20.0]
[1732177808843,0.26774238,241.55,241.51,20.0]
[1732177809027,0.26774238,241.55,241.53,20.0]
[1732177810746,0.26774238,241.5,241.44,20.0]
[1732177810953,0.26774238,241.5,241.46,20.0]
[1732177811139,0.26774238,241.5,241.48,20.0]
[1732177811648,0.26774238,241.5,241.47,23.776884]
[1732177812035,0.26774238,241.5,241.48,20.0]
[1732177814428,0.76774238,241.52,241.48,20.0]
[1732177814633,0.26774238,241.5,241.48,20.0]
[1732177815937,0.76774238,241.5,241.48,20.0]
[1732177816135,0.76774238,241.5,241.41,23.776884]
[1732177816337,0.76774238,241.5,241.42,20.0]
[1732177816535,0.76774238,241.5,241.45,23.776884]
[1732177816739,0.76774238,241.5,241.44,20.0]
[1732177817156,0.76774238,241.5,241.46,20.0]
[1732177817663,0.76774238,241.5,241.44,20.0]
[1732177818154,0.76774238,241.5,241.46,20.0]
[1732177818841,0.76774238,241.5,241.44,20.0]
[1732177819043,0.76774238,241.5,241.46,20.0]
[1732177819253,0.26774238,241.5,241.48,20.0]
[1732177824362,30.3085,241.59,241.35,3.29102954]
[1732177824363,0.26774238,241.46,241.35,3.29102954]
[1732177824565,0.26774238,241.46,241.36,9.13742224]
[1732177825097,0.26774238,241.46,241.37,3.74819621]
[1732177825235,0.26774238,241.5,241.38,9.13742224]
[1732177825441,0.26774238,241.5,241.39,3.74819621]
[1732177825654,0.26774238,241.5,241.4,32.98890981]
[1732177825861,0.26774238,241.5,241.41,23.74819621]
[1732177826062,0.5,241.53,241.43,20.0]
[1732177826262,0.26774238,241.52,241.48,23.776884]
[1732177826561,0.26774238,241.54,241.51,20.0]
[1732177826737,0.26774238,241.6,241.55,20.0]
[1732177826937,0.26774238,241.6,241.57,20.0]
[1732177827135,0.26774238,241.58,241.57,43.776884]
[1732177828367,0.26774238,241.6,241.57,43.776884]
[1732177828553,0.26774238,241.58,241.57,43.776884]
[1732177830170,0.26774238,241.6,241.57,43.776884]
[1732177830344,0.26774238,241.58,241.57,43.776884]
[1732177830544,0.26774238,241.6,241.57,43.776884]
[1732177830846,0.26774238,241.58,241.57,43.776884]
[1732177831053,0.26774238,241.58,241.57,58.03076062]
[1732177831550,0.26774238,241.6,241.57,58.03076062]
[1732177831754,0.26774238,241.6,241.59,34.25387662]
[1732177832053,0.26774238,241.6,241.59,58.03076062]
[1732177832562,0.76774238,241.6,241.59,34.25387662]
[1732177834774,0.76774238,241.6,241.59,14.25728599]
[1732177835069,0.76774238,241.6,241.59,34.25728599]
[1732177836182,0.76774238,241.6,241.59,9.12166179]
[1732177836542,0.76774238,241.6,241.59,29.12166179]
[1732177837742,0.76774238,241.62,241.6,23.776884]
[1732177838056,0.76774238,241.62,241.61,9.12166179]
[1732177839073,0.76774238,241.62,241.61,29.12166179]
[1732177840969,0.5,241.6,241.54,4.59717903]
[1732177841152,0.76774238,241.6,241.59,29.12166179]
[1732177841471,0.26774238,241.75,241.67,43.776884]
[1732177841672,0.26774238,241.75,241.74,20.0]
[1732177841877,0.26774238,241.75,241.74,72.05456353]
[1732177843169,0.5,241.8,241.78,20.0]
[1732177843347,0.5,241.8,241.79,47.87880176]
[1732177844159,0.5,241.8,241.79,41.26706418]
[1732177845660,0.5,241.8,241.79,32.14540239]
[1732177845857,0.5,241.8,241.79,41.26706418]
[1732177846662,0.26774238,241.81,241.79,41.26706418]
[1732177846663,0.26774238,241.81,241.8,20.0]
[1732177846853,0.26774238,241.81,241.8,65.04394818]
[1732177847057,0.5,241.82,241.8,65.04394818]
[1732177847358,0.5,241.82,241.81,41.26706418]
[1732177850664,0.5,241.82,241.81,41.24948684]
[1732177851786,0.5,241.82,241.81,46.37546771]
[1732177852872,0.5,241.82,241.79,20.0]
[1732177853075,0.26774238,241.8,241.79,20.0]
[1732177853274,0.26774238,241.8,241.79,34.23006532]
[1732177853586,0.76774238,241.8,241.79,34.23006532]
[1732177855479,0.76774238,241.8,241.79,40.93163055]
[1732177859362,0.5,241.83,241.79,64.70851455]
[1732177859583,0.5,241.83,241.82,14.23006532]
[1732177859789,0.5,241.83,241.82,34.23006532]
[1732177861981,0.5,241.83,241.82,40.93163055]
[1732177864270,0.5,241.83,241.82,34.23006532]
[1732177866593,0.5,241.83,241.82,14.23006532]
[1732177867791,0.5,241.83,241.82,34.23006532]
[1732177868291,45.5151,241.88,241.65,3.65120865]
[1732177868292,0.76774238,241.8,241.65,3.65120865]
[1732177868597,0.76774238,241.75,241.74,14.23006532]
[1732177869170,0.76774238,241.75,241.74,19.9096861]
[1732177869564,0.76774238,241.75,241.74,39.9096861]
[1732177869772,45.5151,241.88,241.74,45.2936459]
[1732177869773,0.5,241.77,241.74,45.2936459]
[1732177869968,0.5,241.77,241.68,0.62045782]
[1732177869969,0.5,241.77,241.76,34.23006532]
[1732177870187,0.76774238,241.77,241.76,39.9096861]
[1732177871289,0.76774238,241.77,241.76,25.67962078]
[1732177871478,0.76774238,241.77,241.76,39.9096861]
[1732177872691,0.5,241.77,241.76,39.9096861]
[1732177872886,0.76774238,241.77,241.76,39.9096861]
[1732177874772,0.76774238,241.77,241.76,39.91329057]
[1732177875300,0.5,241.77,241.76,45.29725037]
[1732177877494,0.5,241.77,241.76,40.17153492]
[1732177879197,0.5,241.79,241.77,20.0]
[1732177879396,0.5,241.79,241.78,20.17153492]
[1732177879696,0.5,241.79,241.78,40.17153492]
[1732177881072,0.5,241.79,241.78,31.06358058]
[1732177883394,0.5,241.79,241.78,25.3839598]
[1732177883699,0.5,241.79,241.78,5.3839598]
[1732177887000,0.5,241.79,241.73,5.3839598]
[1732177887201,0.26774238,241.74,241.73,25.3839598]
[1732177887376,0.5,241.79,241.75,20.0]
[1732177887575,0.5,241.76,241.75,20.0]
[1732177887885,0.5,241.76,241.74,20.0]
[1732177893083,0.5,241.76,241.74,25.66028384]
[1732177893284,0.5,241.76,241.74,20.0]
[1732177893479,0.5,241.74,241.67,5.66028384]
[1732177893683,0.5,241.52,241.51,9.10795434]
[1732177893901,0.5,241.5,241.45,12.8948]
[1732177894096,0.5,241.5,241.4,32.6831]
[1732177894287,0.5,241.5,241.47,9.10795434]
[1732177895394,0.5,241.5,241.48,9.10795434]
[1732177896099,0.5,241.5,241.49,20.0]
[1732177897198,0.5,241.5,241.49,9.13238217]
[1732177897586,0.5,241.5,241.49,29.13238217]
[1732177897784,0.5,241.44,241.4,32.6831]
[1732177898103,0.5,241.49,241.43,28.53897246]
[1732177898287,0.5,241.58,241.57,161.0]
[1732177898488,0.5,241.58,241.57,5.60467532]
[1732177899093,0.5,241.58,241.57,14.26948623]
[1732177899405,0.5,241.58,241.57,20.0]
[1732177901482,0.5,241.58,241.57,34.26948623]
[1732177901686,0.5,241.58,241.57,39.87416155]
[1732177902085,0.5,241.58,241.57,25.60467532]
[1732177902815,0.5,241.58,241.57,39.87416155]
[1732177903105,0.5,241.58,241.57,25.60467532]
[1732177903308,0.5,241.58,241.57,39.87416155]
[1732177903605,0.5,241.55,241.53,23.776884]
[1732177903782,0.5,241.55,241.54,20.0]
[1732177904488,0.5,241.55,241.54,34.26948623]
[1732177906016,42.1668,241.72,241.54,39.87416155]
[1732177906017,0.5,241.57,241.54,39.87416155]
[1732177906186,0.5,241.57,241.56,34.26948623]
[1732177906499,0.5,241.57,241.56,54.14364778]
[1732177906708,0.5,241.59,241.56,54.14364778]
[1732177906883,0.5,241.59,241.58,14.26948623]
[1732177907083,0.5,241.59,241.58,39.87416155]
[1732177907891,0.5,241.59,241.58,34.26948623]
[1732177908382,0.5,241.59,241.52,5.60467532]
[1732177908383,0.5,241.55,241.52,5.60467532]
[1732177908588,0.5,241.55,241.54,14.26948623]
[1732177909605,0.5,241.55,241.54,34.26948623]
[1732177910305,0.5,241.55,241.54,20.0]
[1732177911106,0.5,241.55,241.53,20.0]
[1732177911405,0.5,241.55,241.54,20.0]
[1732177913083,0.5,241.55,241.54,34.26948623]
[1732177913297,0.5,241.55,241.54,39.87416155]
[1732177914896,0.5,241.55,241.54,34.26948623]
[1732177915408,0.5,241.51,241.5,20.0]
[1732177917018,0.5,241.51,241.5,34.26948623]
[1732177917631,0.5,241.51,241.5,14.26948623]
[1732177917794,0.5,241.51,241.5,34.26948623]
[1732177918308,0.5,241.51,241.5,14.26948623]
[1732177918520,0.5,241.51,241.46,4.86536251]
[1732177918521,0.5,241.49,241.48,14.26948623]
[1732177918697,0.5,241.51,241.41,23.776884]
[1732177918902,0.5,241.53,241.49,23.776884]
[1732177919216,0.5,241.53,241.5,10.01244316]
[1732177919798,0.5,241.51,241.5,10.01244316]
[1732177920013,0.5,241.51,241.5,68.05881339]
[1732177920912,0.5,241.51,241.5,63.24626344]
[1732177921301,0.5,241.51,241.5,58.04637023]
[1732177921615,0.5,241.51,241.5,34.26948623]
[1732177921993,0.5,241.51,241.5,14.26948623]
[1732177923119,0.5,241.49,241.45,19.46937944]
[1732177923316,0.5,241.49,241.48,38.04637023]
[1732177923520,0.5,241.49,241.48,58.04637023]
[1732177924310,0.5,241.49,241.48,34.26948623]
[1732177924895,0.5,241.49,241.48,14.26948623]
[1732177925520,0.5,241.49,241.48,19.46937944]
[1732177925703,0.5,241.49,241.48,5.19989321]
[1732177925907,0.5,241.49,241.48,14.26948623]
[1732177926106,0.5,241.49,241.48,19.46937944]
[1732177926626,0.5,241.49,241.48,43.776884]
[1732177926819,0.5,241.49,241.48,58.04637023]
[1732177931604,0.5,241.51,241.5,20.0]
[1732177931814,0.5,241.51,241.5,58.04637023]
[1732177932703,0.5,241.51,241.5,58.03564735]
[1732177933910,0.5,241.51,241.5,52.90314697]
[1732177937414,0.5,241.53,241.5,58.10304018]
[1732177937617,0.5,241.53,241.52,29.12626297]
[1732177938537,0.5,241.55,241.53,20.0]
[1732177938736,0.5,241.57,241.54,29.12626297]
[1732177939040,0.5,241.57,241.56,9.12626297]
[1732177939425,0.5,241.57,241.56,29.12626297]
[1732177940128,0.5,241.57,241.51,20.0]
[1732177940441,0.5,241.57,241.55,20.0]
[1732177940815,0.5,241.57,241.53,9.12626297]
[1732177941210,0.5,241.57,241.54,20.0]
[1732177941734,0.5,241.55,241.54,20.0]
[1732177942236,0.5,241.55,241.53,20.0]
[1732177943350,0.5,241.5,241.49,20.0]
[1732177943638,0.5,241.5,241.49,34.26507422]
[1732177943827,0.5,241.5,241.49,20.0]
[1732177944026,0.5,241.5,241.49,34.26507422]
[1732177944428,0.5,241.52,241.49,63.24185143]
[1732177944736,0.5,241.52,241.51,14.26507422]
[1732177945036,0.5,241.52,241.51,39.46496743]
[1732177945242,0.5,241.54,241.52,43.776884]
[1732177945442,0.5,241.56,241.53,19.46496743]
[1732177945752,0.5,241.58,241.57,20.0]
[1732177945913,0.5,241.6,241.58,23.776884]
[1732177946117,0.5,241.6,241.59,14.26507422]
[1732177948138,0.5,241.6,241.58,23.776884]
[1732177948443,0.5,241.6,241.53,9.67774565]
[1732177948444,0.5,241.6,241.59,34.26507422]
[1732177948625,0.5,241.54,241.52,5.19989321]
[1732177948824,0.5,241.51,241.46,5.19989321]
[1732177949247,0.5,241.51,241.5,14.26507422]
[1732177949827,0.5,241.51,241.5,34.26507422]
[1732177950347,0.5,241.51,241.5,25.19989321]
[1732177950530,0.5,241.53,241.51,20.0]
[1732177950732,0.5,241.55,241.53,43.776884]
[1732177950928,0.5,241.55,241.54,19.46496743]
[1732177951248,0.5,241.55,241.54,39.46496743]
[1732177953343,0.5,241.55,241.54,34.26507422]
[1732177954836,0.5,241.55,241.54,39.46496743]
[1732177956727,0.5,241.55,241.54,25.19989321]
[1732177956927,0.5,241.55,241.54,39.46496743]
[1732177957758,0.5,241.55,241.54,34.26507422]
[1732177958131,0.5,241.55,241.49,5.19989321]
[1732177958132,0.5,241.55,241.53,14.26507422]
[1732177958850,0.5,241.55,241.54,20.0]
[1732177959054,0.5,241.51,241.5,20.0]
[1732177959254,0.5,241.51,241.5,58.04195822]
[1732177960044,0.5,241.51,241.5,63.24185143]
[1732177963239,0.5,241.58,241.53,23.776884]
[1732177963562,0.5,241.58,241.57,43.776884]
[1732177963761,0.5,241.58,241.57,48.97677721]
[1732177964551,0.5,241.58,241.57,25.19989321]
[1732177966028,0.5,241.58,241.57,39.46496743]
[1732177966840,0.5,241.58,241.57,25.19989321]
[1732177967130,0.5,241.58,241.57,39.46496743]
[1732177969251,0.5,241.58,241.57,25.19989321]
[1732177972957,0.5,241.58,241.57,39.46496743]
[1732177974047,0.5,241.58,241.57,20.0]
[1732177974252,0.5,241.58,241.56,20.0]
[1732177974953,0.5,241.58,241.55,14.26507422]
[1732177975192,0.5,241.54,241.53,14.26507422]
[1732177976154,0.5,241.52,241.49,5.19989321]
[1732177976344,0.5,241.5,241.49,5.19989321]
[1732177976539,0.5,241.5,241.49,10.01244316]
[1732177977453,0.5,241.5,241.49,30.01244316]
[1732177978048,0.5,241.5,241.49,44.27751738]
[1732177979861,0.5,241.54,241.51,20.0]
[1732177980040,0.5,241.54,241.53,34.26507422]
[1732177980236,0.5,241.54,241.53,39.46496743]
[1732177981256,0.5,241.54,241.53,25.19989321]
[1732177981457,0.5,241.54,241.53,20.0]
[1732177981946,0.5,241.54,241.53,14.26507422]
[1732177982153,0.5,241.54,241.53,34.26507422]
[1732177982555,0.5,241.54,241.53,20.0]
[1732177982765,0.5,241.54,241.52,14.26455071]
[1732177983249,0.5,241.54,241.53,14.26455071]
[1732177983448,0.5,241.54,241.49,20.0]
[1732177983449,0.5,241.54,241.52,14.26455071]
[1732177984058,0.5,241.54,241.52,9.12918795]
[1732177984354,0.5,241.54,241.53,29.12918795]
[1732177984734,0.5,241.54,241.53,14.32908116]
[1732177985145,0.5,241.54,241.53,34.32908116]
[1732177990147,0.5,241.54,241.53,25.19989321]
[1732177990349,0.5,241.54,241.53,34.32908116]
[1732177993370,0.5,241.56,241.54,20.0]
[1732177993570,0.5,241.56,241.55,48.27081906]
[1732177996471,0.5,241.56,241.55,39.14163111]
[1732177998471,0.5,241.56,241.54,9.12918795]
[1732177999660,0.5,241.56,241.55,20.0]
[1732178000873,0.5,241.56,241.54,20.0]
[1732178001066,0.5,241.56,241.53,20.0]
[1732178002049,0.5,241.56,241.54,20.0]
[1732178004386,0.5,241.56,241.49,5.19989321]
[1732178004555,0.5,241.56,241.52,20.0]
[1732178006172,0.5,241.53,241.5,20.0]
[1732178007568,0.5,241.53,241.5,29.12918795]
[1732178008884,0.5,241.53,241.52,20.0]
[1732178011777,0.5,241.53,241.52,29.12918795]
[1732178013050,0.5,241.53,241.52,20.0]
[1732178014165,0.5,241.53,241.52,29.12918795]
[1732178014372,0.5,241.53,241.52,34.32908116]
[1732178015078,0.5,241.53,241.52,39.14163111]
[1732178015466,0.5,241.53,241.52,30.01244316]
[1732178015666,0.5,241.53,241.52,39.14163111]
[1732178017079,0.5,241.55,241.54,20.0]
[1732178017275,0.5,241.55,241.54,43.45826911]
[1732178017473,0.5,241.55,241.54,48.27081906]
[1732178017674,0.5,241.55,241.54,39.14163111]
[1732178018865,0.5,241.55,241.54,48.27081906]
[1732178019171,0.5,241.55,241.54,39.14163111]
[1732178021355,16.532997,241.74,241.56,20.0]
[1732178021356,0.5,241.59,241.56,20.0]
[1732178021561,0.5,241.59,241.58,29.12918795]
[1732178021762,0.5,241.59,241.58,39.14163111]
[1732178022163,0.5,241.59,241.58,30.01244316]
[1732178022366,0.5,241.59,241.58,62.91851511]
[1732178023779,0.5,241.63,241.59,43.776884]
[1732178023978,0.5,241.65,241.63,43.776884]
[1732178024265,0.5,241.67,241.65,43.776884]
[1732178024591,0.5,241.67,241.66,43.45826911]
[1732178026577,0.5,241.67,241.66,48.27081906]
[1732178027193,0.5,241.67,241.66,39.14163111]
[1732178027498,0.5,241.67,241.66,48.27081906]
[1732178028685,0.5,241.71,241.68,23.776884]
[1732178028888,0.5,241.71,241.7,29.12918795]
[1732178029075,0.5,241.71,241.7,20.0]
[1732178029489,0.5,241.6,241.56,41.95428795]
[1732178029693,0.5,241.6,241.59,9.12918795]
[1732178030677,0.5,241.58,241.57,5.19989321]
[1732178030877,0.5,241.58,241.57,14.32908116]
[1732178031803,0.5,241.58,241.49,4.08230681]
[1732178032103,30.5411,241.61,241.5,4.69989321]
[1732178032306,30.5411,241.61,241.53,9.12918795]
[1732178032713,30.5411,241.61,241.5,4.69989321]
[1732178033089,30.5411,241.61,241.52,9.12909173]
[1732178033488,30.5411,241.61,241.52,14.26489538]
[1732178033708,30.5411,241.61,241.5,14.26489538]
[1732178034011,30.5411,241.61,241.49,14.26489538]
[1732178034700,30.5411,241.61,241.47,14.26489538]
[1732178034701,12.8257,241.6,241.47,14.26489538]
[1732178034899,12.8257,241.6,241.46,14.26489538]
[1732178035108,12.8257,241.6,241.52,14.26489538]
[1732178035306,12.8257,241.6,241.51,14.26489538]
[1732178035918,12.8257,241.6,241.53,20.0]
[1732178036803,12.8257,241.6,241.56,14.26489538]
[1732178038113,12.8257,241.6,241.57,20.0]
[1732178038601,12.8257,241.6,241.56,14.26489538]
[1732178038602,44.6302,241.68,241.6,20.0]
[1732178038803,44.6302,241.68,241.65,14.26489538]
[1732178039620,44.6302,241.68,241.62,14.26489538]
[1732178039906,44.6302,241.68,241.62,20.0]
[1732178040317,44.6302,241.68,241.62,14.26489538]
[1732178040806,44.6302,241.68,241.64,14.26489538]
[1732178041004,44.6302,241.68,241.63,14.26489538]
[1732178041602,44.6302,241.68,241.64,34.26489538]
[1732178041992,44.6302,241.68,241.67,14.26489538]
[1732178042314,44.6302,241.68,241.64,25.1637821]
[1732178042315,44.6302,241.68,241.66,14.26489538]
[1732178042698,13.0503,241.68,241.67,14.26489538]
[1732178042885,44.9279,241.73,241.68,20.0]
[1732178043089,44.9279,241.73,241.66,14.26489538]
[1732178043314,44.9279,241.73,241.67,20.0]
[1732178044195,44.9279,241.73,241.63,14.26489538]
[1732178044510,23.776884,241.72,241.64,20.0]
[1732178045121,23.776884,241.72,241.65,20.0]
[1732178045918,23.776884,241.72,241.63,14.26489538]
[1732178046117,23.776884,241.72,241.64,20.0]
[1732178047802,23.776884,241.72,241.65,19.42867748]
[1732178048518,23.776884,241.72,241.65,5.1637821]
[1732178048921,44.9279,241.73,241.65,19.42867748]
[1732178049415,44.9279,241.73,241.68,34.26489538]
[1732178050319,44.9279,241.73,241.67,14.26489538]
[1732178050818,44.9279,241.73,241.66,34.26489538]
[1732178051220,44.9279,241.73,241.69,14.26489538]
[1732178051396,44.9279,241.73,241.71,14.26489538]
[1732178051593,44.9279,241.73,241.66,25.1637821]
[1732178051813,23.776884,241.72,241.66,20.0]
[1732178052026,23.776884,241.72,241.63,14.26489538]
[1732178052331,23.776884,241.72,241.59,5.1637821]
[1732178052332,23.776884,241.72,241.62,14.26489538]
[1732178053101,23.776884,241.72,241.63,20.0]
[1732178055091,23.776884,241.72,241.63,34.26489538]
[1732178055321,23.776884,241.72,241.63,39.42867748]
[1732178055825,23.776884,241.72,241.63,25.1637821]
[1732178056592,23.776884,241.72,241.63,5.1637821]
[1732178056795,27.913884,241.72,241.56,4.81254995]
[1732178057093,55.0802,241.69,241.51,4.81254995]
[1732178057318,55.0802,241.69,241.48,14.26489538]
[1732178057319,23.776884,241.65,241.48,14.26489538]
[1732178057508,23.776884,241.65,241.5,14.26489538]
[1732178057749,43.1834,241.67,241.54,14.26489538]
[1732178057750,23.776884,241.66,241.54,14.26489538]
[1732178058019,43.1834,241.67,241.59,14.26489538]
[1732178058198,43.1834,241.67,241.56,20.0]
[1732178058595,43.1834,241.67,241.56,34.26489538]
[1732178058796,23.776884,241.66,241.56,20.0]
[1732178059730,23.776884,241.66,241.57,14.26489538]
[1732178060138,23.776884,241.66,241.58,20.0]
[1732178060427,23.776884,241.66,241.56,25.1637821]
[1732178061001,23.776884,241.66,241.54,20.0]
[1732178061700,27.914984,241.66,241.51,14.26489538]
[1732178062196,27.914984,241.66,241.52,14.26489538]
[1732178062397,23.776884,241.66,241.55,14.26489538]
[1732178062594,16.539491,241.65,241.56,14.26489538]
[1732178062808,23.776884,241.64,241.56,19.42867748]
[1732178063224,23.776884,241.64,241.57,20.0]
[1732178063733,16.539491,241.65,241.58,14.26489538]
[1732178063916,16.539491,241.65,241.59,20.0]
[1732178064605,16.539491,241.65,241.62,14.26489538]
[1732178064810,16.539491,241.65,241.58,20.0]
[1732178064811,43.1834,241.67,241.64,14.26489538]
[1732178065616,43.1834,241.67,241.64,20.0]
[1732178066298,43.1834,241.67,241.64,34.26489538]
[1732178066503,43.1834,241.67,241.64,20.0]
[1732178067202,43.1834,241.67,241.62,14.26489538]
[1732178067416,43.1834,241.67,241.63,20.0]
[1732178068506,43.1834,241.67,241.63,34.26489538]
[1732178069804,43.1834,241.67,241.61,14.26489538]
[1732178070108,43.1834,241.67,241.61,20.0]
[1732178071216,43.1834,241.67,241.62,14.26489538]
[1732178071414,43.1834,241.67,241.63,20.0]
[1732178072005,16.532334,241.71,241.67,20.0]
[1732178072232,32.2077,241.73,241.7,14.26489538]
[1732178072639,32.2077,241.73,241.69,14.26489538]
[1732178074427,32.2077,241.73,241.7,14.26489538]
[1732178074631,32.2077,241.73,241.71,14.26489538]
[1732178074841,12.6367,241.77,241.71,14.26489538]
[1732178075335,12.6367,241.77,241.76,14.26489538]